fUST/lending_fUST_20240802
["ID","MTS","AMOUNT","RATE_DAILY","PERIOD"]
[333834718,1722539442768,-1698.55,0.00013698,2]
[333834719,1722539442778,-500.0,0.00013698,2]
[333834720,1722539442788,-500.0,0.00013698,2]
[333834721,1722539442797,-500.0,0.00013698,2]
[333834722,1722539442806,-575.01,0.00013698,2]
[333834723,1722539442815,-500.0,0.00013698,2]
[333834724,1722539442825,-500.0,0.00013698,2]
[333834725,1722539442835,-500.0,0.00013698,2]
[333834726,1722539442845,-500.0,0.00013698,2]
[333834727,1722539442854,-500.0,0.00013698,2]
[333834728,1722539442863,-500.0,0.00013698,2]
[333834729,1722539442873,-500.0,0.00013698,2]
[333834730,1722539442883,-500.0,0.00013698,2]
[333834731,1722539442892,-500.0,0.00013698,2]
[333834732,1722539442903,-500.0,0.00013698,2]
[333834733,1722539442995,-500.0,0.00013698,2]
[333834734,1722539443008,-500.0,0.00013698,2]
[333834735,1722539443018,-515.82,0.00013698,2]
[333834736,1722539443030,-500.0,0.00013698,2]
[333834737,1722539443040,-500.0,0.00013698,2]
[333834738,1722539443050,-500.0,0.00013698,2]
[333834739,1722539443060,-500.0,0.00013698,2]
[333834740,1722539443070,-500.0,0.00013698,2]
[333834741,1722539443079,-500.0,0.00013698,2]
[333834742,1722539443089,-500.0,0.00013698,2]
[333834743,1722539443100,-500.0,0.00013698,2]
[333834744,1722539443110,-500.0,0.00013698,2]
[333834745,1722539443121,-500.0,0.00013698,2]
[333834746,1722539443131,-500.0,0.00013698,2]
[333834747,1722539443140,-500.0,0.00013698,2]
[333834748,1722539443150,-500.0,0.00013698,2]
[333834749,1722539443160,-500.0,0.00013698,2]
[333834750,1722539443169,-500.0,0.00013698,2]
[333834751,1722539443179,-257.77649434,0.00013698,2]
[333834752,1722539443188,-500.0,0.00013698,2]
[333834753,1722539443197,-572.1339997,0.00013698,2]
[333834754,1722539443207,-500.0,0.00013698,2]
[333834755,1722539443217,-500.0,0.00013698,2]
[333834756,1722539443226,-1183.42,0.00013698,2]
[333834757,1722539443235,-535.43,0.00013698,2]
[333834759,1722539443244,-500.0,0.00013698,2]
[333834760,1722539443254,-500.0,0.00013698,2]
[333834761,1722539443263,-500.0,0.00013698,2]
[333834762,1722539443272,-500.0,0.00013698,2]
[333834764,1722539443282,-500.0,0.00013698,2]
[333834765,1722539443291,-500.0,0.00013698,2]
[333834766,1722539443299,-500.0,0.00013698,2]
[333834767,1722539443309,-1126.05,0.00013698,2]
[333834768,1722539443318,-500.0,0.00013698,2]
[333834769,1722539443327,-500.0,0.00013698,2]
[333834770,1722539443337,-500.0,0.00013698,2]
[333834771,1722539443348,-500.0,0.00013698,2]
[333834773,1722539443357,-500.0,0.00013698,2]
[333834774,1722539443366,-500.0,0.00013698,2]
[333834776,1722539443377,-500.0,0.00013698,2]
[333834778,1722539443387,-500.0,0.00013698,2]
[333834780,1722539443396,-506.86776513,0.00013698,2]
[333834783,1722539443406,-500.0,0.00013698,2]
[333834784,1722539443416,-500.0,0.00013698,2]
[333834785,1722539443425,-500.0,0.00013698,2]
[333834786,1722539443435,-500.0,0.00013698,2]
[333834787,1722539443444,-500.0,0.00013698,2]
[333834788,1722539443455,-500.0,0.00013698,2]
[333834789,1722539443465,-500.0,0.00013698,2]
[333834791,1722539443474,-500.0,0.00013698,2]
[333834792,1722539443484,-500.0,0.00013698,2]
[333834794,1722539443494,-500.0,0.00013698,2]
[333834796,1722539443503,-500.0,0.00013698,2]
[333834798,1722539443513,-500.0,0.00013698,2]
[333834800,1722539443522,-500.0,0.00013698,2]
[333834801,1722539443531,-501.36699702,0.00013698,2]
[333834802,1722539443540,-500.0,0.00013698,2]
[333834803,1722539443549,-500.0,0.00013698,2]
[333834804,1722539443559,-876.17,0.00013698,2]
[333834805,1722539443568,-500.0,0.00013698,2]
[333834806,1722539443578,-500.0,0.00013698,2]
[333834807,1722539443587,-583.87173242,0.00013698,2]
[333834809,1722539443597,-500.0,0.00013698,2]
[333834811,1722539443607,-500.0,0.00013698,2]
[333834813,1722539443618,-518.49,0.00013698,2]
[333834814,1722539443628,-518.49,0.00013698,2]
[333834815,1722539443637,-500.0,0.00013698,2]
[333834816,1722539443646,-518.49,0.00013698,2]
[333834817,1722539443655,-500.0,0.00013698,2]
[333834818,1722539443666,-518.49,0.00013698,2]
[333834819,1722539443676,-500.0,0.00013698,2]
[333834820,1722539443685,-500.0,0.00013698,2]
[333834821,1722539443696,-500.0,0.00013698,2]
[333834822,1722539443706,-500.0,0.00013698,2]
[333834823,1722539443715,-500.0,0.00013698,2]
[333834825,1722539443724,-500.0,0.00013698,2]
[333834827,1722539443734,-767.73,0.00013698,2]
[333834829,1722539443743,-500.0,0.00013698,2]
[333834830,1722539443753,-500.0,0.00013698,2]
[333834831,1722539443764,-482.69647581,0.00013698,2]
[333834832,1722539443773,-500.0,0.00013698,2]
[333834833,1722539443783,-500.0,0.00013698,2]
[333834834,1722539443792,-500.0,0.00013698,2]
[333834835,1722539443802,-500.0,0.00013698,2]
[333834836,1722539443811,-500.0,0.00013698,2]
[333834837,1722539443820,-500.0,0.00013698,2]
[333834838,1722539443829,-502.58801939,0.00013698,2]
[333834839,1722539443838,-389.00392,0.00013699,2]
[333834840,1722539443848,-500.0,0.00013699,2]
[333834841,1722539443857,-571.31565699,0.00013699,2]
[333834842,1722539443867,-500.0,0.00013699,2]
[333834843,1722539443878,-261.15018643,0.000137,2]
[333834844,1722539443887,-150.112233,0.000137,2]
[333834845,1722539443896,-2316.83464149,0.00013872,2]
[333834847,1722539443906,-2000.0,0.00013872,2]
[333834849,1722539443927,-200.0,0.00013872,2]
[333834851,1722539443937,-272.90490133,0.0001396,2]
[333834854,1722539443946,-45192.121628,0.00013962,2]
[333834855,1722539443955,-500.0,0.00013971,2]
[333834858,1722539443969,-500.0,0.00013971,2]
[333834859,1722539443979,-500.0,0.00013971,2]
[333834861,1722539443988,-518.49,0.00013971,2]
[333834862,1722539444001,-518.49,0.00013971,2]
[333834863,1722539444010,-500.0,0.00013971,2]
[333834864,1722539444019,-239.3157928,0.00013971,2]
[333834865,1722539444029,-500.0,0.00013971,2]
[333834866,1722539444038,-185.58148103,0.00013971,2]
[333834867,1722539444047,-218.64641798,0.00013971,2]
[333834868,1722539444057,-500.0,0.00013971,2]
[333834869,1722539444069,-500.0,0.00013971,2]
[333834870,1722539444079,-500.0,0.00013971,2]
[333834871,1722539444088,-500.0,0.00013971,2]
[333834872,1722539444098,-500.0,0.00013971,2]
[333834873,1722539444108,-500.0,0.00013971,2]
[333834874,1722539444117,-500.0,0.00013971,2]
[333834875,1722539444126,-500.0,0.00013971,2]
[333834876,1722539444135,-207.84393302,0.00013971,2]
[333834877,1722539444145,-500.0,0.00013971,2]
[333834878,1722539444154,-500.0,0.00013971,2]
[333834879,1722539444164,-500.0,0.00013971,2]
[333834880,1722539444174,-55.17292081,0.00013971,2]
[333834881,1722539444406,-96.31017919,0.00013971,2]
[333834882,1722539444433,-2253.42375815,0.00013972,5]
[333834883,1722539444517,-1590.4,0.00013972,5]
[333834884,1722539444528,-5595.62977106,0.00013972,5]
[333834885,1722539444539,-10930.01447224,0.00013972,5]
[333834886,1722539444551,-2422.83900751,0.00013972,5]
[333834887,1722539444564,-883.07233013,0.00013972,5]
[333834888,1722539444573,-508.87455546,0.00013972,2]
[333834889,1722539444584,-500.0,0.00013972,2]
[333834890,1722539444594,-500.0,0.00013972,2]
[333834891,1722539444603,-500.0,0.00013972,2]
[333834892,1722539444614,-500.0,0.00013972,2]
[333834893,1722539444624,-506.05120005,0.00013972,2]
[333834894,1722539444634,-500.0,0.00013972,2]
[333834895,1722539444643,-500.0,0.00013972,2]
[333834896,1722539444653,-500.0,0.00013972,2]
[333834897,1722539444663,-500.0,0.00013972,2]
[333834898,1722539444672,-500.0,0.00013972,2]
[333834899,1722539444682,-500.0,0.00013972,2]
[333834900,1722539444693,-500.0,0.00013972,2]
[333834901,1722539444702,-500.0,0.00013972,2]
[333834902,1722539444711,-500.0,0.00013972,2]
[333834903,1722539444721,-477.67427206,0.00013972,2]
[333834904,1722539444730,-500.0,0.00013972,2]
[333834905,1722539444739,-500.0,0.00013972,2]
[333834906,1722539444749,-500.0,0.00013972,2]
[333834907,1722539444759,-252.11695064,0.00013972,2]
[333834908,1722539444768,-500.0,0.00013972,2]
[333834909,1722539444777,-500.0,0.00013972,2]
[333834910,1722539444787,-500.0,0.00013972,2]
[333834911,1722539444797,-276.7,0.00013972,2]
[333834912,1722539444806,-500.0,0.00013972,2]
[333834913,1722539444816,-515.92031383,0.00013972,2]
[333834914,1722539444826,-500.0,0.00013972,2]
[333834915,1722539444836,-500.0,0.00013972,2]
[333834916,1722539444847,-500.0,0.00013972,2]
[333834917,1722539444858,-500.0,0.00013972,2]
[333834918,1722539444867,-500.0,0.00013972,2]
[333834919,1722539444877,-293.05473515,0.00013972,2]
[333834920,1722539444887,-500.0,0.00013972,2]
[333834921,1722539444898,-500.0,0.00013972,2]
[333834922,1722539444908,-500.0,0.00013972,2]
[333834923,1722539444935,-500.0,0.00013972,2]
[333834924,1722539444944,-500.0,0.00013972,2]
[333834925,1722539444953,-515.8659736,0.00013972,2]
[333834926,1722539444963,-500.0,0.00013972,2]
[333834927,1722539444973,-500.0,0.00013972,2]
[333834928,1722539444984,-500.0,0.00013972,2]
[333834929,1722539444995,-500.0,0.00013972,2]
[333834930,1722539445005,-500.0,0.00013972,2]
[333834931,1722539445014,-500.0,0.00013972,2]
[333834932,1722539445024,-500.0,0.00013972,2]
[333834933,1722539445121,-500.0,0.00013972,2]
[333834934,1722539445130,-500.0,0.00013972,2]
[333834935,1722539445139,-500.0,0.00013972,2]
[333834936,1722539445148,-500.0,0.00013972,2]
[333834937,1722539445157,-500.0,0.00013972,2]
[333834938,1722539445166,-500.0,0.00013972,2]
[333834939,1722539445176,-500.0,0.00013972,2]
[333834940,1722539445184,-500.0,0.00013972,2]
[333834941,1722539445194,-500.0,0.00013972,2]
[333834942,1722539445204,-500.0,0.00013972,2]
[333834943,1722539445213,-500.0,0.00013972,2]
[333834944,1722539445222,-500.0,0.00013972,2]
[333834945,1722539445231,-500.0,0.00013972,2]
[333834946,1722539445240,-177.75794468,0.00013972,2]
[333834947,1722539445250,-500.0,0.00013972,2]
[333834948,1722539445259,-500.0,0.00013972,2]
[333834949,1722539445268,-500.0,0.00013972,2]
[333834950,1722539445278,-500.0,0.00013972,2]
[333834951,1722539445287,-500.0,0.00013972,2]
[333834952,1722539445296,-500.0,0.00013972,2]
[333834953,1722539445306,-500.0,0.00013972,2]
[333834954,1722539445316,-500.0,0.00013972,2]
[333834955,1722539445325,-500.0,0.00013972,2]
[333834956,1722539445334,-500.0,0.00013972,2]
[333834957,1722539445343,-500.0,0.00013972,2]
[333834958,1722539445353,-500.0,0.00013972,2]
[333834959,1722539445362,-500.0,0.00013972,2]
[333834960,1722539445372,-511.38,0.00013972,2]
[333834961,1722539445381,-278.77858634,0.00013972,2]
[333834962,1722539445390,-500.0,0.00013972,2]
[333834963,1722539445400,-500.0,0.00013972,2]
[333834964,1722539445410,-578.01420066,0.00013972,2]
[333834965,1722539445437,-171.18434318,0.00013972,2]
[333834966,1722539445447,-500.0,0.00013972,2]
[333834967,1722539445458,-500.0,0.00013972,2]
[333834968,1722539445467,-500.0,0.00013972,2]
[333834969,1722539445477,-500.0,0.00013972,2]
[333834970,1722539445486,-500.0,0.00013972,2]
[333834971,1722539445496,-500.0,0.00013972,2]
[333834972,1722539445505,-500.0,0.00013972,2]
[333834973,1722539445515,-500.0,0.00013972,2]
[333834974,1722539445524,-500.0,0.00013972,2]
[333834975,1722539445533,-500.0,0.00013972,2]
[333834976,1722539445542,-500.0,0.00013972,2]
[333834977,1722539445551,-500.0,0.00013972,2]
[333834978,1722539445560,-151.0,0.00013972,2]
[333834979,1722539445570,-500.0,0.00013972,2]
[333834980,1722539445580,-500.0,0.00013972,2]
[333834981,1722539445590,-500.0,0.00013972,2]
[333834982,1722539445600,-504.67025547,0.00013972,2]
[333834983,1722539445616,-651.45,0.00013972,2]
[333834984,1722539445626,-500.0,0.00013972,2]
[333834985,1722539445637,-1234.71,0.00013972,2]
[333834986,1722539445648,-500.0,0.00013972,2]
[333834987,1722539445659,-500.0,0.00013972,2]
[333834988,1722539445670,-500.0,0.00013972,2]
[333834989,1722539445679,-500.0,0.00013972,2]
[333834990,1722539445690,-500.0,0.00013972,2]
[333834991,1722539445700,-500.0,0.00013972,2]
[333834992,1722539445709,-500.0,0.00013972,2]
[333834993,1722539445718,-150.78579553,0.00013972,2]
[333834994,1722539445728,-500.0,0.00013972,2]
[333834995,1722539445737,-482.432322,0.00013972,2]
[333834996,1722539445747,-1540.2,0.00013972,2]
[333834997,1722539445756,-482.432322,0.00013972,2]
[333834998,1722539445766,-151.0,0.00013972,2]
[333834999,1722539445775,-643.89658767,0.00013972,2]
[333835000,1722539445785,-500.0,0.00013972,2]
[333835001,1722539445794,-1698.55,0.00013972,2]
[333835002,1722539445804,-500.0,0.00013972,2]
[333835003,1722539445813,-500.0,0.00013972,2]
[333835004,1722539445823,-500.0,0.00013972,2]
[333835005,1722539445832,-575.01,0.00013972,2]
[333835006,1722539445842,-500.0,0.00013972,2]
[333835007,1722539445851,-1128.262591,0.00013972,2]
[333835008,1722539445861,-151.0,0.00013972,2]
[333835009,1722539445870,-500.0,0.00013972,2]
[333835010,1722539445879,-1128.262591,0.00013972,2]
[333835011,1722539445889,-151.0,0.00013972,2]
[333835012,1722539445898,-171.586568,0.00013972,2]
[333835013,1722539445908,-500.0,0.00013972,2]
[333835014,1722539445924,-500.0,0.00013972,2]
[333835015,1722539445933,-500.0,0.00013972,2]
[333835016,1722539445948,-500.0,0.00013972,2]
[333835017,1722539445958,-308.992263,0.00013972,2]
[333835018,1722539445967,-500.0,0.00013972,2]
[333835019,1722539445977,-515.82,0.00013972,2]
[333835020,1722539445987,-500.0,0.00013972,2]
[333835021,1722539445996,-500.0,0.00013972,2]
[333835022,1722539446005,-500.0,0.00013972,2]
[333835023,1722539446015,-500.0,0.00013972,2]
[333835024,1722539446025,-264.52636978,0.00013972,2]
[333835152,1722539458449,160.12324259,9.999e-05,2]
[333835153,1722539489588,779.46237368,9.999e-05,2]
[333835154,1722539489950,209.81495165,9.999e-05,2]
[333835155,1722539494611,494.10879056,9.999e-05,2]
[333835156,1722539496721,664.0681359,9.999e-05,2]
[333835157,1722539499708,890.12096781,9.999e-05,2]
[333835158,1722539500506,309.3349299,9.999e-05,2]
[333835159,1722539500665,155.40444647,9.999e-05,2]
[333835160,1722539501141,568.42284982,9.999e-05,2]
[333835161,1722539503400,556.73625768,9.999e-05,2]
[333835162,1722539504390,186.93330099,9.999e-05,7]
[333835163,1722539508232,155.10729065,9.999e-05,2]
[333835164,1722539509217,163.02554165,9.999e-05,2]
[333835165,1722539512960,531.94294972,9.999e-05,2]
[333835166,1722539513282,155.09104029,9.999e-05,2]
[333835167,1722539513375,628.03771352,9.999e-05,2]
[333835168,1722539515669,319.6458186,9.999e-05,2]
[333835169,1722539515703,533.78606257,9.999e-05,2]
[333835170,1722539520861,1416.84179042,9.999e-05,2]
[333835171,1722539524014,250.95351123,9.999e-05,2]
[333835172,1722539527077,206.48007837,9.999e-05,2]
[333835173,1722539528760,727.33991579,9.999e-05,2]
[333835174,1722539530157,391.12294837,9.999e-05,2]
[333835175,1722539530672,319.6458186,9.999e-05,2]
[333835176,1722539536474,19459.99476884,9.999e-05,2]
[333835177,1722539537000,1492.55194249,9.999e-05,2]
[333835178,1722539542422,1626.86783463,9.999e-05,2]
[333835179,1722539542574,16284.15763932,9.999e-05,2]
[333835180,1722539543562,282.73351605,9.999e-05,2]
[333835181,1722539547619,218.30768663,9.999e-05,2]
[333835182,1722539550049,3601.36284679,9.999e-05,2]
[333835183,1722539557880,2253.0398834,9.999e-05,2]
[333835186,1722539591668,404.65460675,9.999e-05,2]
[333835187,1722539592948,209.81495165,9.999e-05,2]
[333835188,1722539603862,155.28337214,9.999e-05,2]
[333835189,1722539614699,890.12096781,9.999e-05,2]
[333835190,1722539635394,1038.87671587,9.999e-05,2]
[333835194,1722539680070,890.94751272,9.999e-05,2]
[333835205,1722539973262,156.77873769,9.999e-05,2]
[333835207,1722540186043,3098.16053354,0.00025,60]
[333835208,1722540282218,272.90490133,0.00025,60]
[333835211,1722540292420,336.10460123,9.999e-05,2]
[333835212,1722540294158,156.57079759,9.999e-05,2]
[333835213,1722540296002,156.92418716,9.999e-05,2]
[333835214,1722540299401,555.94182926,9.999e-05,2]
[333835215,1722540343153,-220.23,0.00010959,2]
[333835216,1722540343177,-183.52,0.00010959,2]
[333835217,1722540343199,-152.94,0.00010959,2]
[333835218,1722540343222,-764.7,0.00010959,2]
[333835219,1722540343246,-250.0,0.00011754,2]
[333835220,1722540343271,-250.0,0.00011786,2]
[333835221,1722540343296,-250.0,0.00011819,2]
[333835222,1722540343321,-3.09831432,0.00011851,2]
[333835224,1722540374030,244.78359005,9.999e-05,2]
[333835225,1722540396889,413.80608461,9.999e-05,2]
[333835226,1722540407497,155.88138012,9.999e-05,2]
[333835227,1722540476035,182.33125772,9.999e-05,2]
[333835231,1722540548147,-166.666666,0.00010959,2]
[333835232,1722540548171,-300.0,0.0001106,2]
[333835233,1722540548193,-300.0,0.0001106,2]
[333835234,1722540548220,-20213.72197724,0.00011061,2]
[333835235,1722540550202,-4686.27802276,0.00011061,2]
[333835236,1722540550226,-166.666666,0.00011256,2]
[333835237,1722540550249,-166.666666,0.00011554,2]
[333835238,1722540550273,-246.90168568,0.00011851,2]
[333835239,1722540550298,-166.666666,0.00011851,2]
[333835240,1722540550322,-250.0,0.00011883,2]
[333835241,1722540550345,-250.0,0.00011915,2]
[333835242,1722540550367,-250.0,0.00011948,2]
[333835243,1722540550389,-250.0,0.0001198,2]
[333835244,1722540550412,-250.0,0.00012012,2]
[333835245,1722540550435,-250.0,0.00012044,2]
[333835246,1722540550457,-250.0,0.00012077,2]
[333835247,1722540550482,-250.0,0.00012109,2]
[333835248,1722540550508,-250.0,0.00012141,2]
[333835249,1722540550530,-166.666666,0.00012148,2]
[333835250,1722540550553,-420.0,0.00012153,2]
[333835251,1722540550577,-420.0,0.00012166,2]
[333835252,1722540550600,-250.0,0.00012173,2]
[333835253,1722540550625,-250.0,0.00012206,2]
[333835254,1722540550647,-250.0,0.00012238,2]
[333835255,1722540550669,-250.0,0.0001227,2]
[333835256,1722540550691,-250.0,0.00012302,2]
[333835257,1722540586573,459.55767833,0.00012119,2]
[333835288,1722540631867,-250.0,0.00012335,2]
[333835290,1722540631877,-250.0,0.00012367,2]
[333835292,1722540631886,-166.666666,0.00012446,2]
[333835295,1722540631896,-2166.61754505,0.000129,2]
[333835312,1722540637861,-317.26163982,0.000129,2]
[333835314,1722540637871,-159.114575,0.00012986,2]
[333835316,1722540637880,-300.0,0.00013588,2]
[333835317,1722540637890,-300.0,0.00013588,2]
[333835318,1722540637899,-2342.05741793,0.00013589,2]
[333835328,1722540640178,-38259.32465137,0.00013589,2]
[333835329,1722540640188,-1255.58347537,0.00013589,2]
[333835330,1722540640200,-5918.3188985,0.00013589,2]
[333835331,1722540640210,-7173.90237385,0.00013591,2]
[333835332,1722540640220,-7173.90237385,0.00013594,2]
[333835333,1722540640230,-7173.90237385,0.00013596,2]
[333835334,1722540640239,-7173.90237385,0.00013598,2]
[333835335,1722540640249,-3166.96642892,0.00013598,2]
[333835336,1722540640258,-307.4033574,0.00013598,2]
[333835337,1722540640268,-40720.31632482,0.00013599,2]
[333835338,1722540640277,-4267.12745654,0.00013686,2]
[333835339,1722540640287,-40601.3820693,0.00013688,2]
[333835340,1722540640296,-172951.11451789,0.00013688,2]
[333835341,1722540640308,-5017.61532663,0.00013688,2]
[333835342,1722540640374,1527.50962449,0.00012119,2]
[333835343,1722540640397,2192.47444358,0.00012119,2]
[333835372,1722540643006,-8861.55658436,0.00012119,2]
[333835373,1722540643018,-1157.0,0.00012119,2]
[333835374,1722540643088,-8418.57893171,0.00012119,2]
[333835386,1722540646093,-281885.49705371,0.00012119,2]
[333835387,1722540646103,-25038.18050148,0.00013688,2]
[333835388,1722540646112,-3447.03,0.00013697,2]
[333835389,1722540646122,-3447.03,0.00013697,2]
[333835390,1722540646131,-3447.03,0.00013697,2]
[333835391,1722540646141,-3447.03,0.00013697,2]
[333835392,1722540646151,-40753.65201082,0.00013698,5]
[333835393,1722540646161,-11837.68966954,0.00013698,5]
[333835394,1722540646171,-500.0,0.00013698,2]
[333835395,1722540646180,-500.0,0.00013698,2]
[333835396,1722540646189,-500.0,0.00013698,2]
[333835397,1722540646199,-500.0,0.00013698,2]
[333835398,1722540646208,-500.0,0.00013698,2]
[333835399,1722540646218,-500.0,0.00013698,2]
[333835400,1722540646239,-500.0,0.00013698,2]
[333835401,1722540646249,-500.0,0.00013698,2]
[333835402,1722540646258,-500.0,0.00013698,2]
[333835403,1722540646268,-183.52297265,0.00013698,2]
[333835404,1722540646278,-500.0,0.00013698,2]
[333835405,1722540646288,-500.0,0.00013698,2]
[333835406,1722540646298,-500.0,0.00013698,2]
[333835407,1722540646308,-500.0,0.00013698,2]
[333835408,1722540646325,-500.0,0.00013698,2]
[333835409,1722540646340,-500.0,0.00013698,2]
[333835410,1722540646350,-500.0,0.00013698,2]
[333835411,1722540646360,-500.0,0.00013698,2]
[333835412,1722540646370,-500.0,0.00013698,2]
[333835413,1722540646380,-500.0,0.00013698,2]
[333835414,1722540646391,-500.0,0.00013698,2]
[333835415,1722540646401,-500.0,0.00013698,2]
[333835416,1722540646411,-188.66237129,0.00013698,2]
[333835417,1722540646420,-500.0,0.00013698,2]
[333835418,1722540646430,-500.0,0.00013698,2]
[333835419,1722540646440,-500.0,0.00013698,2]
[333835420,1722540646450,-500.0,0.00013698,2]
[333835421,1722540646460,-500.0,0.00013698,2]
[333835422,1722540646470,-445.78366679,0.00013698,2]
[333835423,1722540646480,-500.0,0.00013698,2]
[333835424,1722540646490,-500.0,0.00013698,2]
[333835425,1722540646500,-500.0,0.00013698,2]
[333835426,1722540646511,-500.0,0.00013698,2]
[333835427,1722540646520,-287.95835174,0.00013698,2]
[333835428,1722540646531,-500.0,0.00013698,2]
[333835429,1722540646541,-500.0,0.00013698,2]
[333835430,1722540646551,-512.22822767,0.00013698,2]
[333835431,1722540646561,-500.0,0.00013698,2]
[333835432,1722540646571,-500.0,0.00013698,2]
[333835433,1722540646584,-500.0,0.00013698,2]
[333835434,1722540646594,-500.0,0.00013698,2]
[333835435,1722540646604,-500.0,0.00013698,2]
[333835436,1722540646615,-500.0,0.00013698,2]
[333835437,1722540646624,-500.0,0.00013698,2]
[333835438,1722540646633,-500.0,0.00013698,2]
[333835439,1722540646643,-500.0,0.00013698,2]
[333835440,1722540646653,-500.0,0.00013698,2]
[333835441,1722540646664,-500.0,0.00013698,2]
[333835442,1722540646674,-500.0,0.00013698,2]
[333835443,1722540646683,-500.0,0.00013698,2]
[333835444,1722540646693,-500.0,0.00013698,2]
[333835445,1722540646702,-500.0,0.00013698,2]
[333835446,1722540646712,-500.0,0.00013698,2]
[333835447,1722540646722,-500.0,0.00013698,2]
[333835448,1722540646731,-500.0,0.00013698,2]
[333835449,1722540646741,-500.0,0.00013698,2]
[333835450,1722540646750,-500.0,0.00013698,2]
[333835451,1722540646760,-500.0,0.00013698,2]
[333835452,1722540646771,-500.0,0.00013698,2]
[333835453,1722540646781,-500.0,0.00013698,2]
[333835454,1722540646791,-500.0,0.00013698,2]
[333835455,1722540646800,-504.82750399,0.00013698,2]
[333835456,1722540646810,-320.51396772,0.00013698,2]
[333835457,1722540646820,-528.97781954,0.00013698,2]
[333835458,1722540646833,-505.15509623,0.00013698,2]
[333835459,1722540646843,-500.73041792,0.00013698,2]
[333835460,1722540646853,-500.0,0.00013698,2]
[333835461,1722540646863,-161.95589257,0.00013698,2]
[333835462,1722540646873,-500.0,0.00013698,2]
[333835463,1722540646883,-500.0,0.00013698,2]
[333835464,1722540646893,-500.0,0.00013698,2]
[333835465,1722540646903,-500.0,0.00013698,2]
[333835466,1722540646913,-500.0,0.00013698,2]
[333835467,1722540646923,-500.0,0.00013698,2]
[333835468,1722540646934,-500.0,0.00013698,2]
[333835469,1722540646944,-500.0,0.00013698,2]
[333835470,1722540646953,-500.0,0.00013698,2]
[333835471,1722540646965,-507.34818783,0.00013698,2]
[333835472,1722540646975,-500.0,0.00013698,2]
[333835473,1722540646985,-500.0,0.00013698,2]
[333835474,1722540646996,-574.09764681,0.00013698,2]
[333835475,1722540647007,-500.0,0.00013698,2]
[333835476,1722540647016,-500.0,0.00013698,2]
[333835477,1722540647027,-500.0,0.00013698,2]
[333835478,1722540647037,-500.0,0.00013698,2]
[333835479,1722540647048,-500.0,0.00013698,2]
[333835480,1722540647058,-500.0,0.00013698,2]
[333835481,1722540647067,-266.05622766,0.00013698,2]
[333835482,1722540647161,-24.41059155,0.00013698,2]
[333835499,1722541550167,-783.88329124,0.00010753,2]
[333835501,1722541652101,-300.0,0.00010752,2]
[333835502,1722541652124,-300.0,0.00010752,2]
[333835503,1722541652146,-81.75159335,0.00010753,2]
[333835504,1722541758108,-300.0,0.00010752,2]
[333835505,1722541758130,-300.0,0.00010752,2]
[333835506,1722541758152,-24034.36511541,0.00010753,2]
[333835507,1722541758173,-356.90689636,0.00010753,2]
[333835508,1722541758193,-154.74859346,0.00010753,2]
[333835509,1722541758216,-174.37281606,0.00010753,2]
[333835510,1722541758237,-2237.21882,0.00010844,2]